fUST/lending_fUST_20250707
["ID","MTS","AMOUNT","RATE_DAILY","PERIOD"]
[370104728,1751885442271,-460.0,0.00019937,2]
[370104729,1751885442281,-466.03728526,0.00019938,2]
[370104730,1751885442290,-460.0,0.00019938,2]
[370104731,1751885442300,-460.0,0.00019938,2]
[370104732,1751885442310,-448.11,0.00019938,2]
[370104733,1751885442319,-460.0,0.00019938,2]
[370104734,1751885442329,-460.0,0.00019938,2]
[370104735,1751885442339,-600.14002683,0.00019938,2]
[370104736,1751885442348,-460.0,0.00019938,2]
[370104737,1751885442358,-460.0,0.00019938,2]
[370104738,1751885442369,-460.0,0.00019938,2]
[370104739,1751885442379,-481.78,0.00019938,2]
[370104740,1751885442389,-460.0,0.00019938,2]
[370104741,1751885442399,-460.0,0.00019938,2]
[370104742,1751885442409,-460.0,0.00019938,2]
[370104743,1751885442419,-1329.46,0.00019938,2]
[370104744,1751885442428,-460.0,0.00019939,2]
[370104745,1751885442438,-460.0,0.00019939,2]
[370104746,1751885442448,-347.52215432,0.00019939,2]
[370104747,1751885442458,-462.20625358,0.00019977,2]
[370104748,1751885442468,-460.0,0.00019977,2]
[370104749,1751885442477,-460.0,0.00019977,2]
[370104750,1751885442487,-155.47,0.00019977,2]
[370104751,1751885442496,-460.0,0.00020209,2]
[370104752,1751885442506,-659.92,0.0002021,2]
[370104753,1751885442515,-199.25997317,0.00020211,2]
[370104754,1751885442525,-460.0,0.00020211,2]
[370104755,1751885442535,-460.0,0.00020211,2]
[370104756,1751885442544,-460.0,0.00020211,2]
[370104757,1751885442553,-460.0,0.00020211,2]
[370104758,1751885442563,-472.21646281,0.00020211,2]
[370104759,1751885442576,-460.0,0.00020211,2]
[370104760,1751885442585,-460.0,0.00020211,2]
[370104761,1751885442595,-460.0,0.00020211,2]
[370104762,1751885442605,-205.45,0.00020211,2]
[370104763,1751885442615,-460.0,0.00020211,2]
[370104764,1751885442625,-460.0,0.00020211,2]
[370104765,1751885442635,-460.0,0.00020211,2]
[370104766,1751885442644,-334.57251241,0.00020211,2]
[370104767,1751885442654,-460.0,0.00020211,2]
[370104768,1751885442663,-1329.46,0.00020211,2]
[370104769,1751885442673,-460.0,0.00020212,2]
[370104770,1751885442683,-460.0,0.00020212,2]
[370104771,1751885442692,-460.0,0.00020212,2]
[370104772,1751885442701,-570.87,0.00020212,2]
[370104773,1751885442711,-460.0,0.00020212,2]
[370104774,1751885442721,-460.0,0.00020212,2]
[370104775,1751885442730,-460.0,0.00020251,2]
[370104776,1751885442739,-484.70083974,0.00020483,2]
[370104777,1751885442749,-659.92,0.00020484,2]
[370104778,1751885442759,-460.0,0.00020485,2]
[370104779,1751885442768,-460.0,0.00020485,2]
[370104780,1751885442778,-460.0,0.00020485,2]
[370104781,1751885442787,-460.0,0.00020485,2]
[370104782,1751885442797,-460.0,0.00020485,2]
[370104783,1751885442807,-460.0,0.00020485,2]
[370104784,1751885442816,-460.0,0.00020485,2]
[370104785,1751885442826,-158.22,0.00020486,2]
[370104786,1751885442835,-460.0,0.00020486,2]
[370104787,1751885442845,-460.0,0.00020486,2]
[370104788,1751885442855,-460.0,0.00020486,2]
[370104789,1751885442866,-460.0,0.00020486,2]
[370104790,1751885442876,-3529.12,0.00020488,2]
[370104791,1751885442886,-460.0,0.00020525,2]
[370104792,1751885442895,-1468.19,0.000206,2]
[370104795,1751885442905,-350.426,0.00020621,2]
[370104796,1751885442914,-4000.0,0.00020626,2]
[370104797,1751885442923,-659.92,0.00020758,2]
[370104798,1751885442933,-460.0,0.00020759,2]
[370104799,1751885442942,-198.72,0.00020759,2]
[370104800,1751885442952,-460.0,0.00020759,2]
[370104801,1751885442962,-460.0,0.00020759,2]
[370104802,1751885442972,-166.53,0.00020759,2]
[370104803,1751885442982,-460.0,0.00020759,2]
[370104804,1751885442991,-491.44,0.00020759,2]
[370104805,1751885443001,-1329.46,0.00020759,2]
[370104806,1751885443010,-432.87,0.0002076,2]
[370104807,1751885443020,-460.0,0.0002076,2]
[370104808,1751885443030,-243.31,0.0002076,2]
[370104809,1751885443039,-460.0,0.0002076,2]
[370104810,1751885443050,-460.0,0.00020799,2]
[370104811,1751885443060,-6000.0,0.00020812,2]
[370104812,1751885443070,-242.29478637,0.000209,4]
[370104813,1751885443079,-1784.78,0.00021023,3]
[370104814,1751885443090,-892.38,0.00021023,3]
[370104815,1751885443099,-371.84,0.00021023,3]
[370104816,1751885443109,-659.92,0.00021032,2]
[370104817,1751885443120,-460.0,0.00021033,2]
[370104818,1751885443130,-460.0,0.00021033,2]
[370104820,1751885443140,-460.0,0.00021033,2]
[370104822,1751885443149,-460.0,0.00021033,2]
[370104824,1751885443160,-460.0,0.00021034,2]
[370104827,1751885443170,-460.0,0.00021034,2]
[370104829,1751885443180,-460.0,0.00021073,2]
[370104830,1751885443190,-659.92,0.00021306,2]
[370104832,1751885443199,-460.0,0.00021307,2]
[370104835,1751885443209,-460.0,0.00021307,2]
[370104837,1751885443219,-460.0,0.00021307,2]
[370104838,1751885443228,-460.0,0.00021307,2]
[370104839,1751885443238,-460.0,0.00021308,2]
[370104841,1751885443247,-460.0,0.00021308,2]
[370104843,1751885443256,-460.0,0.00021347,2]
[370104845,1751885443265,-162.0,0.00021415,2]
[370104847,1751885443275,-173.562289,0.00021435,2]
[370104850,1751885443285,-659.92,0.0002158,2]
[370104851,1751885443295,-460.0,0.00021581,2]
[370104854,1751885443304,-460.0,0.00021581,2]
[370104856,1751885443314,-235.61,0.00021581,2]
[370104858,1751885443323,-460.0,0.00021581,2]
[370104860,1751885443333,-178.02,0.00021582,2]
[370104862,1751885443343,-460.0,0.00021582,2]
[370104864,1751885443352,-317.36471894,0.00021621,2]
[370104866,1751885443363,-61267.920004,0.00021755,2]
[370104868,1751885443373,-877.98618871,0.00021755,2]
[370104870,1751885443382,-659.92,0.00021854,2]
[370104872,1751885443392,-298.88905817,0.00021855,2]
[370104874,1751885443401,-460.0,0.00021855,2]
[370104876,1751885443411,-460.0,0.00021855,2]
[370104879,1751885443421,-460.0,0.00021856,2]
[370104882,1751885443430,-1329.46,0.00021916,2]
[370104885,1751885443440,-1329.46,0.00021916,2]
[370104888,1751885443450,-1329.46,0.00021916,2]
[370104890,1751885443459,-178.21062223,0.00021917,2]
[370104891,1751885443469,-460.0,0.00021917,2]
[370104893,1751885443478,-460.0,0.00021917,2]
[370104894,1751885443488,-460.0,0.00021917,2]
[370104896,1751885443498,-460.0,0.00021917,2]
[370104898,1751885443507,-460.0,0.00021917,2]
[370104899,1751885443517,-460.0,0.00021917,2]
[370104900,1751885443526,-460.0,0.00021917,2]
[370104901,1751885443536,-460.0,0.00021917,2]
[370104902,1751885443546,-460.0,0.00021917,2]
[370104903,1751885443555,-165.5723176,0.00021917,2]
[370104904,1751885443566,-460.0,0.00021917,2]
[370104905,1751885443579,-460.0,0.00021917,2]
[370104906,1751885443589,-460.17824938,0.00021917,2]
[370104907,1751885443599,-460.0,0.00021917,2]
[370104908,1751885443609,-460.0,0.00021917,2]
[370104910,1751885443620,-460.0,0.00021917,2]
[370104912,1751885443630,-461.60855651,0.00021917,2]
[370104914,1751885443639,-460.0,0.00021917,2]
[370104915,1751885443650,-460.0,0.00021917,2]
[370104916,1751885443660,-460.0,0.00021917,2]
[370104917,1751885443670,-460.0,0.00021917,2]
[370104918,1751885443679,-250.36615438,0.00021917,2]
[370104919,1751885443690,-460.18224811,0.00021917,2]
[370104920,1751885443699,-460.0,0.00021917,2]
[370104921,1751885443709,-460.0,0.00021917,2]
[370104922,1751885443719,-460.0,0.00021917,2]
[370104923,1751885443728,-460.0,0.00021917,2]
[370104924,1751885443738,-460.0,0.00021917,2]
[370104925,1751885443748,-262.85324381,0.00021917,2]
[370104926,1751885443757,-460.0,0.00021917,2]
[370104927,1751885443767,-460.0,0.00021917,2]
[370104928,1751885443776,-460.0,0.00021917,2]
[370104929,1751885443786,-460.0,0.00021917,2]
[370104930,1751885443795,-460.0,0.00021917,2]
[370104931,1751885443805,-536.12,0.00021917,2]
[370104932,1751885443814,-460.0,0.00021917,2]
[370104933,1751885443824,-460.0,0.00021917,2]
[370104934,1751885443833,-460.0,0.00021917,2]
[370104935,1751885443844,-460.0,0.00021917,2]
[370104936,1751885443854,-460.0,0.00021917,2]
[370104937,1751885443864,-460.0,0.00021917,2]
[370104938,1751885443874,-460.0,0.00021917,2]
[370104939,1751885443884,-460.0,0.00021917,2]
[370104940,1751885443893,-460.0,0.00021917,2]
[370104941,1751885443903,-460.0,0.00021917,2]
[370104942,1751885443912,-460.0,0.00021917,2]
[370104943,1751885443922,-460.0,0.00021917,2]
[370104944,1751885443932,-460.0,0.00021917,2]
[370104945,1751885443942,-460.0,0.00021917,2]
[370104946,1751885443952,-460.0,0.00021917,2]
[370104947,1751885443962,-460.0,0.00021917,2]
[370104948,1751885443972,-460.0,0.00021917,2]
[370104949,1751885443982,-460.0,0.00021917,2]
[370104950,1751885443992,-460.0,0.00021917,2]
[370104951,1751885444002,-460.0,0.00021917,2]
[370104952,1751885444012,-460.0,0.00021917,2]
[370104953,1751885444022,-460.0,0.00021917,2]
[370104954,1751885444031,-460.0,0.00021917,2]
[370104955,1751885444040,-460.0,0.00021917,2]
[370104956,1751885444050,-500.0,0.00021917,2]
[370104957,1751885444060,-460.0,0.00021917,2]
[370104958,1751885444070,-460.0,0.00021917,2]
[370104959,1751885444080,-460.0,0.00021917,2]
[370104960,1751885444090,-460.0,0.00021917,2]
[370104961,1751885444100,-460.0,0.00021917,2]
[370104962,1751885444110,-460.0,0.00021917,2]
[370104963,1751885444122,-460.0,0.00021917,2]
[370104964,1751885444134,-460.0,0.00021917,2]
[370104965,1751885444145,-460.0,0.00021917,2]
[370104966,1751885444155,-460.0,0.00021917,2]
[370104967,1751885444165,-460.0,0.00021917,2]
[370104968,1751885444175,-460.0,0.00021917,2]
[370104969,1751885444300,-460.0,0.00021917,2]
[370104970,1751885444323,-460.0,0.00021917,2]
[370104971,1751885444333,-460.0,0.00021917,2]
[370104972,1751885444341,-460.0,0.00021917,2]
[370104973,1751885444349,-460.0,0.00021917,2]
[370104974,1751885444359,-460.0,0.00021917,2]
[370104975,1751885444369,-460.0,0.00021917,2]
[370104976,1751885444378,-460.0,0.00021917,2]
[370104977,1751885444388,-460.0,0.00021917,2]
[370104978,1751885444397,-460.0,0.00021917,2]
[370104979,1751885444407,-460.0,0.00021917,2]
[370104980,1751885444416,-460.0,0.00021917,2]
[370104981,1751885444425,-460.0,0.00021917,2]
[370104982,1751885444435,-460.0,0.00021917,2]
[370104983,1751885444445,-460.0,0.00021917,2]
[370104984,1751885444455,-460.0,0.00021917,2]
[370104985,1751885444465,-460.0,0.00021917,2]
[370104986,1751885444474,-460.0,0.00021917,2]
[370104987,1751885444484,-543.05,0.00021917,2]
[370104988,1751885444493,-460.0,0.00021917,2]
[370104989,1751885444503,-460.0,0.00021917,2]
[370104990,1751885444511,-460.0,0.00021917,2]
[370104991,1751885444521,-460.0,0.00021917,2]
[370104992,1751885444531,-460.0,0.00021917,2]
[370104993,1751885444540,-460.0,0.00021917,2]
[370104994,1751885444549,-460.0,0.00021917,2]
[370104995,1751885444559,-460.0,0.00021917,2]
[370104996,1751885444569,-460.0,0.00021917,2]
[370104997,1751885444581,-460.0,0.00021917,2]
[370104998,1751885444591,-460.0,0.00021917,2]
[370104999,1751885444601,-460.0,0.00021917,2]
[370105000,1751885444610,-460.0,0.00021917,2]
[370105001,1751885444622,-460.0,0.00021917,2]
[370105002,1751885444631,-460.0,0.00021917,2]
[370105003,1751885444640,-460.0,0.00021917,2]
[370105004,1751885444650,-460.0,0.00021917,2]
[370105005,1751885444659,-460.0,0.00021917,2]
[370105006,1751885444669,-460.0,0.00021917,2]
[370105007,1751885444678,-460.0,0.00021917,2]
[370105008,1751885444687,-460.0,0.00021917,2]
[370105009,1751885444697,-460.0,0.00021917,2]
[370105010,1751885444706,-460.0,0.00021917,2]
[370105011,1751885444715,-460.0,0.00021917,2]
[370105012,1751885444725,-460.0,0.00021917,2]
[370105013,1751885444734,-460.0,0.00021917,2]
[370105014,1751885444744,-460.0,0.00021917,2]
[370105015,1751885444754,-460.0,0.00021917,2]
[370105016,1751885444763,-460.0,0.00021917,2]
[370105017,1751885444772,-460.0,0.00021917,2]
[370105018,1751885444781,-460.0,0.00021917,2]
[370105019,1751885444790,-460.0,0.00021917,2]
[370105020,1751885444799,-460.0,0.00021917,2]
[370105021,1751885444809,-460.0,0.00021917,2]
[370105022,1751885444817,-460.0,0.00021917,2]
[370105023,1751885444827,-460.0,0.00021917,2]
[370105024,1751885444836,-460.0,0.00021917,2]
[370105025,1751885444845,-460.0,0.00021917,2]
[370105026,1751885444854,-460.0,0.00021917,2]
[370105027,1751885444863,-460.0,0.00021917,2]
[370105028,1751885444872,-460.0,0.00021917,2]
[370105029,1751885444881,-460.0,0.00021917,2]
[370105030,1751885444891,-375.70536628,0.00021917,2]
[370105031,1751885444901,-460.0,0.00021917,2]
[370105032,1751885444911,-460.0,0.00021917,2]
[370105033,1751885444920,-460.0,0.00021917,2]
[370105034,1751885444929,-460.0,0.00021917,2]
[370105035,1751885444938,-460.0,0.00021917,2]
[370105036,1751885444947,-460.0,0.00021917,2]
[370105037,1751885444956,-500.0,0.00021918,2]
[370105038,1751885444966,-500.0,0.00021918,2]
[370105039,1751885444975,-500.0,0.00021918,2]
[370105040,1751885444985,-474.75800002,0.00021918,2]
[370105041,1751885444994,-500.0,0.00021918,2]
[370105042,1751885445004,-500.0,0.00021918,2]
[370105043,1751885445013,-500.0,0.00021918,2]
[370105044,1751885445022,-500.0,0.00021918,2]
[370105045,1751885445031,-588.26561565,0.0002195,2]
[370105046,1751885445041,-255.0,0.0002195,2]
[370105047,1751885445050,-255.0,0.0002195,2]
[370105048,1751885445060,-255.0,0.0002195,2]
[370105049,1751885445069,-255.0,0.0002195,2]
[370105050,1751885445079,-352.61976986,0.0002195,2]
[370105051,1751885445088,-151.0,0.00021973,2]
[370105052,1751885445098,-151.0,0.00021973,2]
[370105053,1751885445107,-151.53734073,0.00021973,2]
[370105054,1751885445117,-151.0,0.00021973,2]
[370105055,1751885445127,-2142.51,0.00022,7]
[370105056,1751885445136,-44620.14,0.00022,7]
[370105057,1751885445145,-89715.89,0.00022,2]
[370105058,1751885445155,-659.92,0.00022128,2]
[370105059,1751885445164,-460.0,0.00022129,2]
[370105060,1751885445174,-460.0,0.00022129,2]
[370105061,1751885445183,-202.69,0.0002213,2]
[370105062,1751885445193,-460.0,0.00022191,2]
[370105063,1751885445202,-461.34427672,0.00022191,2]
[370105064,1751885445211,-460.0,0.00022191,2]
[370105065,1751885445220,-386.13983266,0.00022191,2]
[370105066,1751885445230,-460.0,0.00022191,2]
[370105067,1751885445241,-203.12,0.00022191,2]
[370105068,1751885445250,-460.0,0.00022191,2]
[370105069,1751885445259,-460.0,0.00022191,2]
[370105070,1751885445269,-460.0,0.00022191,2]
[370105071,1751885445278,-460.0,0.00022191,2]
[370105072,1751885445287,-244.45467458,0.00022191,2]
[370105073,1751885445297,-460.0,0.00022191,2]
[370105074,1751885445306,-460.0,0.00022191,2]
[370105075,1751885445316,-460.0,0.00022191,2]
[370105076,1751885445326,-460.0,0.00022191,2]
[370105077,1751885445336,-460.0,0.00022191,2]
[370105078,1751885445345,-460.0,0.00022191,2]
[370105079,1751885445355,-659.92,0.00022402,2]
[370105080,1751885445364,-320.46375407,0.00022403,2]
[370105081,1751885445374,-460.0,0.00022403,2]
[370105082,1751885445384,-460.0,0.00022465,2]
[370105083,1751885445394,-223.88,0.00022465,2]
[370105084,1751885445405,-877.98618871,0.00022566,2]
[370105085,1751885445419,-242.29478635,0.00022567,7]
[370105086,1751885445429,-8628.86793688,0.00022606,2]
[370105087,1751885445438,-659.92,0.00022676,2]
[370105088,1751885445448,-460.0,0.00022677,2]
[370105089,1751885445458,-258.881302,0.00022699,7]
[370105090,1751885445467,-151.0,0.00022699,7]
[370105091,1751885445476,-151.0,0.00022699,7]
[370105092,1751885445486,-1468.19,0.000227,7]
[370105093,1751885445495,-848.27993403,0.000227,7]
[370105094,1751885445504,-214.06929976,0.000227,7]
[370105095,1751885445514,-151.0,0.000227,7]
[370105096,1751885445527,-151.0,0.000227,7]
[370105097,1751885445538,-659.92,0.0002295,2]
[370105098,1751885445548,-460.0,0.00022951,2]
[370105099,1751885445557,-151.0,0.00022961,6]
[370105100,1751885445568,-151.0,0.00022961,6]
[370105101,1751885445581,-200.31382204,0.00022961,6]
[370105102,1751885445591,-151.0,0.00022961,6]
[370105103,1751885445600,-151.0,0.00022988,6]
[370105104,1751885445610,-160.0,0.00023,2]
[370105105,1751885445622,-198.0,0.00023016,6]
[370105106,1751885445632,-500.0,0.00023105,2]
[370105107,1751885445642,-659.92,0.00023224,2]
[370105108,1751885445652,-460.0,0.00023225,2]
[370105109,1751885445662,-173.562289,0.00023299,2]
[370105110,1751885445672,-877.98618871,0.00023378,2]
[370105111,1751885445680,-61267.92000399,0.00023407,2]
[370105112,1751885445690,-151.0,0.00023438,7]
[370105113,1751885445700,-151.0,0.00023438,7]
[370105114,1751885445709,-151.0,0.00023438,7]
[370105115,1751885445719,-151.0,0.00023438,7]
[370105116,1751885445729,-151.0,0.00023438,7]
[370105117,1751885445740,-151.0,0.00023438,7]
[370105118,1751885445750,-151.0,0.00023438,7]
[370105119,1751885445760,-210.758128,0.00023438,7]
[370105120,1751885445769,-210.758128,0.00023438,7]
[370105121,1751885445779,-151.636879,0.00023438,3]
[370105122,1751885445788,-151.636879,0.00023438,3]
[370105123,1751885445798,-151.0,0.00023438,7]
[370105125,1751885445808,-151.0,0.00023438,7]
[370105126,1751885445817,-151.0,0.00023438,7]
[370105127,1751885445827,-166.906653,0.00023438,7]
[370105128,1751885445836,-166.906653,0.00023438,7]
[370105129,1751885445845,-659.92,0.00023498,2]
[370105130,1751885445856,-460.0,0.00023499,2]
[370105131,1751885445866,-500.0,0.0002357,2]
[370105132,1751885445875,-500.0,0.00023581,2]
[370105133,1751885445885,-450.37,0.00023581,2]
[370105134,1751885445896,-501.01682281,0.00023673,2]
[370105135,1751885445907,-500.0,0.00023673,2]
[370105136,1751885445916,-500.0,0.00023673,2]
[370105137,1751885445926,-500.0,0.00023673,2]
[370105138,1751885445935,-500.0,0.00023673,2]
[370105139,1751885445945,-500.0,0.00023673,2]
[370105140,1751885445955,-500.0,0.00023673,2]
[370105141,1751885445965,-500.46494259,0.00023673,2]
[370105142,1751885445974,-500.0,0.00023673,2]
[370105143,1751885445983,-600.0,0.00023673,2]
[370105144,1751885445992,-500.0,0.00023673,2]
[370105145,1751885446002,-500.0,0.00023673,2]
[370105147,1751885446011,-500.0,0.00023673,2]
[370105148,1751885446020,-508.31206158,0.00023673,2]
[370105149,1751885446030,-500.0,0.00023673,2]
[370105150,1751885446041,-501.8141145,0.00023673,2]
[370105151,1751885446051,-500.0,0.00023673,2]
[370105152,1751885446060,-500.0,0.00023673,2]
[370105154,1751885446070,-500.0,0.00023673,2]
[370105155,1751885446079,-500.0,0.00023673,2]
[370105156,1751885446088,-151.0,0.00023687,2]
[370105157,1751885446098,-151.0,0.00023687,2]
[370105158,1751885446107,-207.4,0.00023687,2]
[370105159,1751885446117,-151.0,0.00023687,2]
[370105160,1751885446126,-690.642,0.00023687,2]
[370105161,1751885446136,-500.0,0.00023687,2]
[370105162,1751885446145,-151.0,0.00023687,2]
[370105163,1751885446155,-500.0,0.00023687,2]
[370105164,1751885446164,-151.0,0.00023687,2]
[370105165,1751885446174,-500.0,0.00023687,2]
[370105166,1751885446184,-151.0,0.00023687,2]
[370105167,1751885446193,-500.0,0.00023687,2]
[370105168,1751885446203,-500.0,0.00023687,2]
[370105169,1751885446212,-151.0,0.00023687,2]
[370105170,1751885446222,-151.0,0.00023687,2]
[370105171,1751885446231,-500.0,0.00023687,2]
[370105172,1751885446241,-151.0,0.00023687,2]
[370105173,1751885446250,-500.0,0.00023687,2]
[370105174,1751885446259,-151.0,0.00023687,2]
[370105175,1751885446269,-500.0,0.00023687,2]
[370105176,1751885446278,-151.0,0.00023687,2]
[370105177,1751885446287,-500.0,0.00023687,2]
[370105178,1751885446297,-1500.0,0.00023687,2]
[370105179,1751885446306,-151.0,0.00023687,2]
[370105180,1751885446316,-500.0,0.00023687,2]
[370105181,1751885446325,-1500.0,0.00023687,2]
[370105182,1751885446334,-151.0,0.00023687,2]
[370105183,1751885446345,-500.0,0.00023687,2]
[370105184,1751885446354,-1500.0,0.00023687,2]
[370105185,1751885446363,-151.0,0.00023687,2]
[370105186,1751885446373,-500.0,0.00023687,2]
[370105187,1751885446383,-151.0,0.00023687,2]
[370105188,1751885446393,-1500.0,0.00023687,2]
[370105189,1751885446402,-151.0,0.00023687,2]
[370105190,1751885446412,-1500.0,0.00023687,2]
[370105191,1751885446421,-1500.0,0.00023687,2]
[370105192,1751885446430,-1500.0,0.00023687,2]
[370105193,1751885446440,-151.0,0.00023687,2]
[370105194,1751885446450,-1500.0,0.00023687,2]
[370105195,1751885446459,-151.0,0.00023687,2]
[370105196,1751885446468,-1500.0,0.00023687,2]
[370105197,1751885446478,-151.0,0.00023687,2]
[370105198,1751885446487,-1500.0,0.00023687,2]
[370105199,1751885446497,-151.0,0.00023687,2]
[370105200,1751885446506,-1500.0,0.00023687,2]
[370105201,1751885446515,-151.0,0.00023687,2]
[370105202,1751885446524,-1500.0,0.00023687,2]
[370105203,1751885446534,-151.0,0.00023687,2]
[370105204,1751885446543,-151.0,0.00023687,2]
[370105205,1751885446552,-151.0,0.00023687,2]
[370105206,1751885446562,-151.0,0.00023687,2]
[370105207,1751885446574,-151.0,0.00023687,2]
[370105208,1751885446583,-151.0,0.00023687,2]
[370105209,1751885446592,-151.0,0.00023687,2]
[370105210,1751885446601,-151.0,0.00023687,2]
[370105211,1751885446611,-151.0,0.00023687,2]
[370105212,1751885446621,-151.0,0.00023687,2]
[370105213,1751885446631,-151.0,0.00023687,2]
[370105214,1751885446641,-5000.0,0.00023687,2]
[370105215,1751885446651,-151.0,0.00023687,2]
[370105216,1751885446662,-151.0,0.00023687,2]
[370105217,1751885446671,-151.0,0.00023687,2]
[370105218,1751885446680,-151.0,0.00023687,2]
[370105219,1751885446690,-151.0,0.00023687,2]
[370105220,1751885446700,-151.0,0.00023687,2]
[370105221,1751885446709,-151.0,0.00023687,2]
[370105222,1751885446718,-151.0,0.00023687,7]
[370105223,1751885446728,-151.0,0.00023687,7]
[370105224,1751885446737,-249.854843,0.00023687,7]
[370105225,1751885446747,-151.0,0.00023687,7]
[370105226,1751885446756,-151.0,0.00023687,7]
[370105227,1751885446765,-273.593835,0.00023687,7]
[370105228,1751885446775,-151.0,0.00023687,7]
[370105229,1751885446785,-273.593835,0.00023687,7]
[370105230,1751885446794,-89715.89,0.000237,2]
[370105231,1751885446804,-163.752996,0.00023744,2]
[370105232,1751885446813,-659.92,0.00023772,2]
[370105233,1751885446823,-460.0,0.00023773,2]
[370105234,1751885446833,-163.30393933,0.00023781,2]
[370105235,1751885446842,-158.78749164,0.00023781,2]
[370105236,1751885446851,-44620.14,0.000238,7]
[370105237,1751885446861,-151.0,0.00023839,7]
[370105238,1751885446871,-151.0,0.00023839,7]
[370105239,1751885446881,-165.928791,0.00023839,7]
[370105240,1751885446891,-151.0,0.00023839,7]
[370105241,1751885446900,-151.0,0.00023839,7]
[370105242,1751885446909,-158.78749164,0.0002389,2]
[370105243,1751885446919,-1877.17009076,0.000239,2]
[370105244,1751885446928,-151.0,0.00023967,7]
[370105245,1751885446938,-151.0,0.00023967,7]
[370105246,1751885446948,-151.0,0.00023967,7]
[370105247,1751885446959,-967.0,0.00023967,2]
[370105248,1751885446969,-2153.0,0.00023967,2]
[370105249,1751885446979,-646.0,0.00023967,2]
[370105250,1751885446988,-741.0,0.00023995,2]
[370105251,1751885446997,-163.30393933,0.00024,2]
[370105252,1751885447008,-2142.51,0.00024,7]
[370105253,1751885447017,-837.79946008,0.00024,7]
[370105254,1751885447027,-230.48668418,0.00024,7]
[370105255,1751885447036,-160.0,0.00024,7]
[370105256,1751885447045,-215.21338352,0.00024,7]
[370105257,1751885447055,-12584.46609586,0.00024,7]
[370105258,1751885447064,-160.0,0.00024,7]
[370105259,1751885447074,-160.0,0.00024,7]
[370105260,1751885447083,-160.0,0.00024,7]
[370105261,1751885447092,-159.266168,0.00024022,2]
[370105262,1751885447102,-158.78749164,0.00024027,2]
[370105263,1751885447111,-659.92,0.00024046,2]
[370105264,1751885447121,-460.0,0.00024047,2]
[370105265,1751885447130,-151.0,0.00024048,7]
[370105266,1751885447140,-162.26242185,0.00024082,2]
[370105267,1751885447149,-1000.0,0.00024123,5]
[370105268,1751885447158,-158.78749164,0.00024164,2]
[370105269,1751885447168,-741.0,0.00024181,2]
[370105270,1751885447177,-877.98618871,0.00024189,2]
[370105271,1751885447187,-163.30393933,0.00024192,2]
[370105272,1751885447196,-222.04728116,0.00024221,2]
[370105273,1751885447205,-1000.0,0.00024221,2]
[370105274,1751885447213,-1000.0,0.00024221,2]
[370105275,1751885447223,-1000.0,0.00024221,2]
[370105276,1751885447233,-1000.0,0.00024221,2]